bitfinex/quotes_SOLUSD_20250602
["timestamp","ask_amount","ask_price","bid_price","bid_amount"]
[1748903924555,18.34648514,156.31,156.27,22.39620957]
[1748903924858,18.34648514,156.31,156.27,6.3991809]
[1748903925954,146.4,156.3,156.27,6.3991809]
[1748903927872,24.53998514,156.33,156.28,18.34648514]
[1748903928639,24.53998514,156.33,156.29,6.39836201]
[1748903929061,18.34648514,156.32,156.29,6.39836201]
[1748903930639,18.34648514,156.32,156.28,6.39877143]
[1748903932248,18.34648514,156.3,156.28,6.39877143]
[1748903932753,18.34648514,156.3,156.26,6.39959042]
[1748903934961,18.34648514,156.31,156.26,22.39856648]
[1748903936079,6.1935,156.33,156.26,40.74505162]
[1748903936261,18.34648514,156.31,156.26,40.74505162]
[1748903936776,18.34648514,156.3,156.26,22.39856648]
[1748903937776,146.4,156.29,156.26,22.39856648]
[1748903940454,146.4,156.28,156.26,6.39959042]
[1748903940652,164.74648514,156.28,156.26,6.39959042]
[1748903940867,18.34648514,156.27,156.26,6.39959042]
[1748903941066,18.34648514,156.27,156.25,17.59986926]
[1748903941272,18.34648514,156.26,156.25,17.59986926]
[1748903941599,18.34648514,156.26,156.25,11.2]
[1748903941876,40.92,156.28,156.25,17.6]
[1748903941877,18.34648514,156.27,156.25,17.6]
[1748903942172,59.26648514,156.28,156.25,17.6]
[1748903942976,18.34648514,156.27,156.25,17.6]
[1748903944998,59.26648514,156.28,156.25,33.6]
[1748903946280,18.34648514,156.28,156.25,33.6]
[1748903946494,18.34648514,156.28,156.25,17.6]
[1748903946674,18.34648514,156.26,156.25,17.6]
[1748903947296,18.34648514,156.26,156.24,6.40024769]
[1748903947473,18.34648514,156.25,156.24,6.40024769]
[1748903947970,18.34648514,156.26,156.24,6.40024769]
[1748903948594,18.34648514,156.26,156.22,6.40122903]
[1748903949212,18.34648514,156.25,156.22,6.40122903]
[1748903950502,18.34648514,156.25,156.21,6.40163881]
[1748903950877,18.34648514,156.24,156.21,6.40163881]
[1748903951076,18.34648514,156.25,156.21,6.40163881]
[1748903951500,18.34648514,156.24,156.21,6.40163881]
[1748903951887,18.34648514,156.25,156.21,6.40163881]
[1748903952094,66.92,156.27,156.21,6.40163881]
[1748903952402,18.34648514,156.25,156.21,22.40573585]
[1748903952585,146.4,156.24,156.21,22.40573585]
[1748903952903,146.4,156.24,156.21,40.75222099]
[1748903953407,146.4,156.24,156.21,6.40163881]
[1748903953594,146.4,156.23,156.21,6.40163881]
[1748903956024,164.74648514,156.23,156.21,6.40163881]
[1748903956315,164.74648514,156.22,156.18,6.40286848]
[1748903956520,164.74648514,156.21,156.18,6.40286848]
[1748903956686,205.64648514,156.21,156.18,6.40286848]
[1748903956886,6.4766,156.25,156.2,18.34648514]
[1748903957108,65.72308514,156.25,156.2,18.34648514]
[1748903957295,18.34648514,156.24,156.19,18.64964886]
[1748903957617,18.34648514,156.24,156.19,36.996134]
[1748903957814,18.34648514,156.24,156.2,18.64964886]
[1748903958113,18.34648514,156.23,156.18,40.75652483]
[1748903958301,18.34648514,156.23,156.19,18.64964886]
[1748903958628,18.34648514,156.21,156.18,6.40286848]
[1748903958915,18.34648514,156.22,156.18,24.74935362]
[1748903959085,47.3766,156.25,156.18,24.74935362]
[1748903959288,18.34648514,156.22,156.18,6.40286848]
[1748903959501,18.34648514,156.22,156.18,5.90286848]
[1748903959910,18.34648514,156.22,156.18,21.91003969]
[1748903960111,47.3766,156.25,156.19,36.996134]
[1748903960112,18.34648514,156.24,156.19,36.996134]
[1748903960319,18.34648514,156.23,156.19,18.64964886]
[1748903960807,47.3766,156.25,156.2,22.40717028]
[1748903961011,18.34648514,156.23,156.2,6.40204865]
[1748903961196,18.34648514,156.22,156.2,6.40204865]
[1748903961588,47.3766,156.25,156.2,6.40204865]
[1748903962007,213.3,156.26,156.21,18.64964886]
[1748903962220,18.34648514,156.25,156.21,18.64964886]
[1748903962915,18.34648514,156.25,156.22,22.40430161]
[1748903963213,146.4,156.26,156.24,18.34648514]
[1748903963429,6.3005,156.29,156.25,18.34648514]
[1748903963929,18.34648514,156.3,156.25,18.34648514]
[1748903964096,26.0,156.3,156.26,18.34648514]
[1748903964290,85.24648514,156.31,156.26,18.34648514]
[1748903964932,157.57739899,156.33,156.26,18.34648514]
[1748903964933,154.3416,156.33,156.28,18.34648514]
[1748903965095,40.9,156.31,156.27,22.39713316]
[1748903965420,18.34648514,156.31,156.27,22.39713316]
[1748903970227,59.22648514,156.31,156.27,22.39713316]
[1748903970411,146.4,156.3,156.27,22.39713316]
[1748903971329,146.4,156.3,156.27,40.7436183]
[1748903972402,146.4,156.3,156.28,18.64964886]
[1748903972598,146.4,156.3,156.28,36.996134]
[1748903973229,146.4,156.3,156.28,18.64964886]
[1748903973404,146.4,156.3,156.29,6.39836201]
[1748903975220,146.4,156.3,156.26,6.39959042]
[1748903975420,164.74648514,156.3,156.26,6.39959042]
[1748903976308,146.4,156.29,156.26,6.39959042]
[1748903977232,146.4,156.29,156.26,24.74607556]
[1748903977531,146.4,156.29,156.26,40.74505162]
[1748903977701,146.4,156.29,156.27,18.64964886]
[1748903978105,146.4,156.29,156.27,36.996134]
[1748903979428,146.4,156.29,156.28,6.39877143]
[1748903979740,146.4,156.29,156.28,43.39490543]
[1748903981433,146.4,156.29,156.28,6.39877143]
[1748903982943,187.26,156.29,156.28,6.39877143]
[1748903983846,187.26,156.29,156.27,6.3991809]
[1748903985330,187.26,156.29,156.27,24.74566604]
[1748903985738,26.0,156.33,156.28,36.996134]
[1748903985952,26.0,156.33,156.29,24.74484715]
[1748903985953,66.86,156.33,156.29,24.74484715]
[1748903987053,26.0,156.33,156.29,40.74075219]
[1748903989532,26.0,156.33,156.29,22.39426705]
[1748903989729,85.18648514,156.33,156.29,6.39836201]
[1748903991045,146.4,156.32,156.29,6.39836201]
[1748903991948,146.4,156.32,156.29,40.74075219]
[1748903992635,146.4,156.32,156.29,22.39426705]
[1748903993244,146.4,156.32,156.29,6.39836201]
[1748903994035,40.84,156.31,156.29,6.39836201]
[1748903994240,59.18648514,156.31,156.29,6.39836201]
[1748903994932,59.18648514,156.31,156.27,6.3991809]
[1748903995259,40.84,156.31,156.27,24.74566604]
[1748903996134,59.18648514,156.31,156.27,6.3991809]
[1748903996540,18.34648514,156.29,156.27,6.3991809]
[1748903996735,205.58648514,156.29,156.27,6.3991809]
[1748903997658,18.34648514,156.28,156.24,25.05005848]
[1748903998550,18.34648514,156.28,156.24,6.40040962]
[1748903999843,146.4,156.27,156.24,6.40040962]
[1748904001448,18.34648514,156.25,156.21,18.64964886]
[1748904001639,205.56648514,156.26,156.21,43.39777281]
[1748904001846,187.22,156.26,156.21,41.05538471]
[1748904002049,205.56648514,156.26,156.21,59.40186985]
[1748904002248,187.22,156.26,156.22,18.34648514]
[1748904002453,205.56648514,156.26,156.21,59.40186985]
[1748904004081,187.22,156.26,156.22,18.34648514]
[1748904004235,187.22,156.26,156.23,6.4008193]
[1748904004571,146.4,156.26,156.23,6.4008193]
[1748904005852,146.4,156.25,156.23,6.4008193]
[1748904007741,146.4,156.25,156.24,36.996134]
[1748904009142,146.4,156.29,156.24,70.51756768]
[1748904009341,40.82,156.33,156.29,18.64964886]
[1748904009562,85.16648514,156.33,156.29,18.64964886]
[1748904010478,18.34648514,156.33,156.29,18.64964886]
[1748904010679,85.16648514,156.33,156.29,18.64964886]
[1748904011546,85.16648514,156.33,156.3,6.39795265]
[1748904012139,44.34648514,156.33,156.3,6.39795265]
[1748904013170,18.34648514,156.31,156.25,18.64964886]
[1748904013356,18.34648514,156.29,156.25,18.64964886]
[1748904013661,59.16648514,156.31,156.27,18.64964886]
[1748904014460,146.4,156.3,156.27,18.64964886]
[1748904015063,146.4,156.3,156.28,6.39877143]
[1748904016142,164.74648514,156.3,156.28,6.39877143]
[1748904016748,18.34648514,156.29,156.28,6.39877143]
[1748904017658,164.74648514,156.3,156.28,6.39877143]
[1748904018259,146.4,156.3,156.28,6.39877143]
[1748904028084,164.74648514,156.3,156.28,6.39877143]
[1748904028395,164.74648514,156.3,156.23,69.43908654]
[1748904028396,18.34648514,156.29,156.26,6.39959042]
[1748904029560,187.18,156.3,156.24,36.996134]
[1748904029561,164.74648514,156.28,156.24,25.0498809]
[1748904029763,18.34648514,156.25,156.22,18.64964886]
[1748904030067,18.34648514,156.23,156.21,6.40163881]
[1748904031964,18.34648514,156.22,156.21,6.40163881]
[1748904032186,164.74648514,156.22,156.16,6.40368852]
[1748904032368,26.0,156.18,156.07,12.613]
[1748904032571,40.78,156.17,156.08,22.42439774]
[1748904032779,40.78,156.17,156.09,18.34648514]
[1748904032956,40.78,156.17,156.08,25.75701505]
[1748904033290,18.34648514,156.14,156.08,25.75701505]
[1748904033511,18.34648514,156.15,156.1,18.34648514]
[1748904033664,18.34648514,156.15,156.11,18.64964886]
[1748904034186,18.34648514,156.16,156.11,36.996134]
[1748904034493,18.34648514,156.18,156.13,36.996134]
[1748904034863,18.34648514,156.18,156.1,19.07613357]
[1748904035060,18.34648514,156.17,156.13,18.64964886]
[1748904035573,44.34648514,156.2,156.15,18.34648514]
[1748904036191,47.3977,156.21,156.17,18.64964886]
[1748904036192,6.6177,156.21,156.17,18.64964886]
[1748904036384,18.34648514,156.22,156.17,36.996134]
[1748904036730,18.34648514,156.23,156.19,18.64964886]
[1748904036993,18.34648514,156.23,156.2,6.40204865]
[1748904037192,18.34648514,156.24,156.21,18.64964886]
[1748904039167,18.34648514,156.24,156.22,6.40122903]
[1748904040393,24.74008514,156.25,156.22,6.40122903]
[1748904040802,18.34648514,156.27,156.23,18.64964886]
[1748904040971,19.92538514,156.28,156.23,36.996134]
[1748904041176,19.92538514,156.28,156.24,6.40040962]
[1748904041177,45.92538514,156.28,156.24,6.40040962]
[1748904041576,24.73788514,156.29,156.25,18.64964886]
[1748904041890,18.34648514,156.31,156.27,18.64964886]
[1748904042421,1.6535,156.32,156.27,18.34648514]
[1748904042582,19.99998514,156.32,156.27,18.34648514]
[1748904043091,19.99998514,156.32,156.28,6.39877143]
[1748904044197,18.34648514,156.31,156.28,6.39877143]
[1748904045214,1.6535,156.32,156.27,6.3991809]
[1748904045389,18.34648514,156.31,156.27,6.3991809]
[1748904046300,1.6535,156.32,156.27,6.3991809]
[1748904046501,18.34648514,156.31,156.27,6.3991809]
[1748904047116,18.34648514,156.3,156.26,22.39837186]
[1748904049026,18.34648514,156.31,156.26,40.744857]
[1748904050220,1.6535,156.32,156.26,40.744857]
[1748904050425,18.34648514,156.32,156.27,36.996134]
[1748904050791,18.34648514,156.31,156.27,18.64964886]
[1748904051186,18.34648514,156.32,156.27,36.996134]
[1748904051620,18.34648514,156.31,156.27,18.64964886]
[1748904051917,18.34648514,156.3,156.27,18.64964886]
[1748904052500,18.34648514,156.3,156.28,6.39877143]
[1748904053201,18.34648514,156.31,156.28,6.39877143]
[1748904053596,18.34648514,156.32,156.29,18.64964886]
[1748904054119,6.3914,156.33,156.29,18.64964886]
[1748904054306,10.13762974,156.36,156.31,18.64964886]
[1748904054307,146.4,156.34,156.31,18.64964886]
[1748904054505,164.74648514,156.34,156.32,6.39713408]
[1748904054689,18.34648514,156.33,156.32,6.39713408]
[1748904055519,146.4,156.34,156.32,6.39713408]
[1748904055722,164.74648514,156.34,156.32,6.39713408]
[1748904056829,146.4,156.34,156.32,6.39713408]
[1748904057328,164.74648514,156.34,156.32,6.39713408]
[1748904057833,18.34648514,156.33,156.31,6.39738194]
[1748904059427,18.34648514,156.33,156.31,18.64964886]
[1748904059837,146.4,156.34,156.31,18.64964886]
[1748904059838,164.74648514,156.34,156.31,18.64964886]
[1748904061010,18.34648514,156.33,156.31,18.64964886]
[1748904061411,146.4,156.34,156.33,18.64964886]
[1748904062611,164.74648514,156.34,156.33,18.64964886]
[1748904064229,146.4,156.34,156.33,6.39672487]
[1748904065036,164.74648514,156.34,156.33,6.39672487]
[1748904065211,164.74648514,156.34,156.32,6.39697248]
[1748904065409,18.34648514,156.33,156.32,25.04662134]
[1748904067329,146.4,156.32,156.28,6.39877143]
[1748904067637,18.34648514,156.29,156.26,6.39959042]
[1748904067838,18.34648514,156.27,156.25,17.49993276]
[1748904068029,146.4,156.28,156.2,50.35652066]
[1748904068030,18.34648514,156.26,156.23,6.4008193]
[1748904068237,18.34648514,156.24,156.23,6.4008193]
[1748904069339,18.34648514,156.24,156.22,6.40122903]
[1748904071328,18.34648514,156.23,156.22,25.05087789]
[1748904071717,18.34648514,156.24,156.22,25.05087789]
[1748904074424,146.4,156.27,156.23,18.64964886]
[1748904074632,18.34648514,156.25,156.23,18.64964886]
[1748904074929,18.34648514,156.24,156.22,6.40122903]
[1748904075853,18.34648514,156.25,156.22,6.40122903]
[1748904077554,146.4,156.27,156.22,6.40122903]
[1748904077555,18.34648514,156.24,156.22,6.40122903]
[1748904079747,18.34648514,156.23,156.22,18.64964886]
[1748904080141,18.34648514,156.23,156.21,25.05128767]
[1748904080336,18.34648514,156.22,156.21,25.05128767]
[1748904080540,18.34648514,156.23,156.21,25.05128767]
[1748904085964,18.34648514,156.24,156.21,41.05538471]
[1748904089367,18.34648514,156.23,156.21,41.05538471]
[1748904090572,18.34648514,156.23,156.21,25.05128767]
[1748904093656,18.34648514,156.22,156.21,6.40163881]
[1748904095758,18.34648514,156.23,156.21,6.40163881]
[1748904097477,146.4,156.22,156.21,6.40163881]
[1748904098178,146.4,156.22,156.2,25.05169751]
[1748904102389,146.4,156.27,156.22,18.64964886]
[1748904102557,164.74648514,156.27,156.22,18.34648514]
[1748904104256,164.74648514,156.27,156.24,18.64964886]
[1748904105582,164.74648514,156.27,156.25,6.4]
[1748904105780,59.06648514,156.26,156.2,34.65378127]
[1748904105957,18.34648514,156.24,156.2,34.65378127]
[1748904106155,18.34648514,156.24,156.22,18.64964886]
[1748904106385,40.72,156.26,156.22,18.64964886]
[1748904106566,18.34648514,156.24,156.22,18.64964886]
[1748904107586,18.34648514,156.24,156.23,6.4008193]
[1748904108689,18.34648514,156.24,156.22,25.05087789]
[1748904109864,164.74648514,156.25,156.22,25.05087789]
[1748904111182,146.4,156.25,156.22,25.05087789]
[1748904111494,164.74648514,156.25,156.22,25.05087789]
[1748904112864,18.34648514,156.24,156.22,25.05087789]
[1748904114685,146.4,156.25,156.22,41.05395047]
[1748904114892,146.4,156.25,156.22,59.40043561]
[1748904115997,146.4,156.25,156.22,41.05395047]
[1748904118484,164.74648514,156.25,156.22,25.05087789]
[1748904120998,18.34648514,156.24,156.22,25.05087789]
[1748904121200,187.1,156.25,156.22,25.05087789]
[1748904121508,205.44648514,156.25,156.22,25.05087789]
[1748904121680,187.1,156.25,156.22,25.05087789]
[1748904122202,146.4,156.25,156.22,41.05395047]
[1748904122796,146.4,156.25,156.22,59.40043561]
[1748904123202,146.4,156.25,156.22,41.05395047]
[1748904125607,11.80953949,156.31,156.25,18.64964886]
[1748904125608,146.4,156.29,156.25,18.64964886]
[1748904125911,146.4,156.29,156.25,36.996134]
[1748904126209,146.4,156.29,156.25,48.036134]
[1748904127394,146.4,156.29,156.26,22.39856648]
[1748904127795,146.4,156.29,156.26,40.74505162]
[1748904129820,146.4,156.29,156.27,18.64964886]
[1748904130109,18.34648514,156.31,156.27,18.64964886]
[1748904131733,18.34648514,156.31,156.29,18.64964886]
[1748904133024,164.74648514,156.31,156.29,18.64964886]
[1748904133224,164.74648514,156.31,156.3,6.39795265]
[1748904136920,164.74648514,156.31,156.29,6.39829337]
[1748904137110,18.34648514,156.3,156.27,18.64964886]
[1748904137308,18.34648514,156.29,156.28,25.04827713]
[1748904137509,146.4,156.28,156.26,6.39959042]
[1748904137706,146.4,156.27,156.25,17.43981702]
[1748904137908,18.34648514,156.26,156.25,6.39981702]
[1748904138947,18.34648514,156.26,156.24,25.05005848]
[1748904140723,187.08,156.27,156.24,25.05005848]
[1748904140724,18.34648514,156.25,156.24,25.05005848]
[1748904141516,187.08,156.27,156.24,25.05005848]
[1748904141715,18.34648514,156.26,156.24,25.05005848]
[1748904142323,18.34648514,156.25,156.24,25.05005848]
[1748904142529,18.34648514,156.25,156.22,6.40122903]
[1748904142727,18.34648514,156.24,156.22,6.40122903]
[1748904143738,18.34648514,156.23,156.22,25.05087789]
[1748904145136,18.34648514,156.23,156.18,71.39265198]
[1748904145137,18.34648514,156.23,156.2,18.64964886]
[1748904145348,18.34648514,156.22,156.2,18.64964886]
[1748904145637,18.34648514,156.22,156.21,6.40163881]
[1748904148860,18.34648514,156.22,156.2,25.0515289]
[1748904149068,18.34648514,156.21,156.2,25.0515289]
[1748904149279,18.34648514,156.22,156.2,25.0515289]
[1748904149665,18.34648514,156.23,156.2,25.0515289]
[1748904150367,59.02648514,156.24,156.2,25.0515289]
[1748904151166,18.34648514,156.23,156.2,6.40188004]
[1748904152983,18.34648514,156.22,156.19,18.64964886]
[1748904153171,18.34648514,156.21,156.19,25.05195711]
[1748904155668,146.4,156.23,156.19,25.05195711]
[1748904155872,18.34648514,156.22,156.19,25.05195711]
[1748904156290,18.34648514,156.21,156.19,25.05195711]
[1748904156921,146.4,156.23,156.19,25.05195711]
[1748904157102,18.34648514,156.22,156.19,25.05195711]
[1748904159103,18.34648514,156.2,156.17,6.40327847]
[1748904159303,18.34648514,156.18,156.17,25.05292733]
[1748904159613,18.34648514,156.18,156.17,6.40327847]
[1748904167352,146.4,156.2,156.17,6.40327847]
[1748904167534,18.34648514,156.18,156.17,6.40327847]
[1748904168851,18.34648514,156.18,156.16,11.04]
[1748904168852,18.34648514,156.18,156.16,17.44351505]
[1748904169065,164.74648514,156.17,156.16,17.44351505]
[1748904169353,146.4,156.17,156.16,17.44351505]
[1748904171337,164.74648514,156.17,156.16,17.44351505]
[1748904172843,164.74648514,156.17,156.16,6.40351505]
[1748904173530,146.4,156.16,156.11,11.04]
[1748904173864,18.34648514,156.13,156.11,11.04]
[1748904174224,187.06,156.15,156.06,29.38648514]
[1748904174225,18.34648514,156.12,156.06,29.38648514]
[1748904174423,18.34648514,156.11,156.07,18.64964886]
[1748904174725,18.34648514,156.11,156.06,29.38648514]
[1748904174924,18.34648514,156.11,156.07,18.64964886]
[1748904175235,18.34648514,156.1,156.07,25.05703016]
[1748904176565,40.66,156.12,156.07,25.05703016]
[1748904176779,18.34648514,156.1,156.07,25.05703016]
[1748904177157,40.66,156.12,156.07,6.4073813]
[1748904177459,40.66,156.12,156.07,25.05703016]
[1748904177460,18.34648514,156.09,156.07,25.05703016]
[1748904177668,18.34648514,156.09,156.07,6.4073813]
[1748904178373,164.74648514,156.08,156.06,6.40764185]
[1748904178560,164.74648514,156.07,156.06,6.40764185]
[1748904179152,164.74648514,156.07,156.03,6.4090239]
[1748904179352,18.34648514,156.05,156.03,6.4090239]
[1748904179576,18.34648514,156.06,156.03,6.4090239]
[1748904179870,18.34648514,156.06,156.03,22.43158366]
[1748904180756,146.4,156.07,156.04,18.64964886]
[1748904180957,146.4,156.07,156.04,36.996134]
[1748904181144,146.4,156.07,156.06,18.34648514]
[1748904181348,146.4,156.07,156.06,43.40392587]
[1748904181743,164.74648514,156.14,156.07,18.64964886]
[1748904181957,146.4,156.14,156.1,18.34648514]
[1748904182466,146.4,156.14,156.11,18.64964886]
[1748904183046,146.4,156.14,156.13,18.64964886]
[1748904183252,146.4,156.14,156.13,43.40105297]
[1748904183453,146.4,156.14,156.13,25.05456783]
[1748904186267,59.00648514,156.17,156.13,25.05456783]
[1748904186268,18.34648514,156.17,156.13,41.06686527]
[1748904186471,59.00648514,156.18,156.13,59.41335041]
[1748904186678,18.34648514,156.17,156.13,41.06686527]
[1748904187171,18.34648514,156.16,156.13,41.06686527]
[1748904189477,18.34648514,156.16,156.1,16.01455636]
[1748904189660,18.34648514,156.14,156.11,18.64964886]
[1748904191359,18.34648514,156.13,156.1,16.01455636]
[1748904191565,18.34648514,156.13,156.1,22.42070626]
[1748904191769,18.34648514,156.12,156.1,22.42070626]
[1748904191965,164.74648514,156.11,156.1,6.4061499]
[1748904193664,164.74648514,156.11,156.08,22.42437595]
[1748904193864,18.34648514,156.1,156.08,22.42437595]
[1748904195276,146.4,156.11,156.08,22.42437595]
[1748904195277,18.34648514,156.09,156.08,6.40697078]
[1748904196273,59.00648514,156.09,156.08,6.40697078]
[1748904197481,59.00648514,156.09,156.05,22.42806414]
[1748904197682,18.34648514,156.07,156.05,22.42806414]
[1748904199158,18.34648514,156.06,156.04,6.40861317]
[1748904199870,146.4,156.08,156.04,41.07979497]
[1748904199871,18.34648514,156.07,156.04,41.07979497]
[1748904200269,146.4,156.08,156.04,41.07979497]
[1748904200483,18.34648514,156.07,156.04,41.07979497]
[1748904201054,164.74648514,156.08,156.05,18.64964886]
[1748904201255,164.74648514,156.08,156.06,6.40779187]
[1748904201664,18.34648514,156.07,156.06,6.40779187]
[1748904203680,146.4,156.08,156.06,6.40779187]
[1748904204993,146.4,156.08,156.07,18.64964886]
[1748904205174,146.4,156.08,156.07,36.996134]
[1748904205359,146.4,156.08,156.07,18.64964886]
[1748904206081,146.4,156.08,156.07,43.4035153]
[1748904206380,26.0,156.13,156.07,43.4035153]
[1748904206381,146.4,156.13,156.07,59.42196855]
[1748904206594,146.4,156.13,156.1,18.64964886]
[1748904206772,146.4,156.13,156.1,18.34648514]
[1748904207578,146.4,156.13,156.12,18.34648514]
[1748904207760,146.4,156.13,156.08,18.64964886]
[1748904207959,146.4,156.13,156.12,18.34648514]
[1748904208177,146.4,156.13,156.12,18.64964886]
[1748904209566,146.4,156.13,156.12,25.05497809]
[1748904211677,164.74648514,156.13,156.12,6.40532923]
[1748904212079,146.4,156.13,156.12,6.40532923]
[1748904213862,146.4,156.13,156.11,6.40573954]
[1748904215191,146.4,156.13,156.12,18.64964886]
[1748904216095,146.4,156.13,156.12,6.40532923]
[1748904218297,146.4,156.13,156.12,18.64964886]
[1748904220383,146.4,156.13,156.12,25.05497809]
[1748904226197,146.4,156.13,156.12,43.40146323]
[1748904227713,187.0,156.18,156.12,59.41478631]
[1748904228003,146.4,156.17,156.15,18.64964886]
[1748904228717,146.4,156.17,156.16,25.05333738]
[1748904232209,146.4,156.17,156.16,6.40368852]
[1748904234097,146.4,156.17,156.15,6.40409862]
[1748904234404,186.98,156.17,156.15,6.40409862]
[1748904236395,186.98,156.17,156.15,25.05374748]
[1748904236708,146.4,156.17,156.16,36.996134]
[1748904237678,146.4,156.17,156.16,43.39982252]
[1748904238500,146.4,156.17,156.16,25.05333738]
[1748904240109,146.4,156.17,156.16,55.05333738]
[1748904241027,205.32648514,156.17,156.16,36.40368852]
[1748904241198,205.32648514,156.17,156.16,6.40368852]
[1748904242113,205.32648514,156.17,156.14,6.40450877]
[1748904242298,18.34648514,156.16,156.14,6.40450877]
[1748904242813,18.34648514,156.15,156.14,6.40450877]
[1748904243005,18.34648514,156.16,156.14,6.40450877]
[1748904243396,40.56,156.15,156.14,6.40450877]
[1748904248095,18.34648514,156.16,156.14,6.40450877]
[1748904248290,205.30648514,156.17,156.14,6.40450877]
[1748904250696,18.34648514,156.16,156.14,6.40450877]
[1748904252320,18.34648514,156.15,156.11,6.40573954]
[1748904252527,164.74648514,156.14,156.11,6.40573954]
[1748904255803,146.4,156.14,156.11,6.40573954]
[1748904258103,146.4,156.14,156.11,22.42008839]
[1748904260304,164.74648514,156.14,156.11,22.42008839]
[1748904260904,164.74648514,156.14,156.1,10.98]
[1748904260905,18.34648514,156.12,156.1,10.98]
[1748904261111,146.4,156.14,156.08,6.40697078]
[1748904261112,58.88648514,156.11,156.08,6.40697078]
[1748904261513,164.74648514,156.1,156.06,22.42634009]
[1748904262132,18.34648514,156.09,156.06,6.40779187]
[1748904262344,58.88648514,156.09,156.06,6.40779187]
[1748904264009,40.54,156.09,156.06,6.40779187]
[1748904265238,18.34648514,156.08,156.06,6.40779187]
[1748904265836,58.88648514,156.09,156.06,6.40779187]
[1748904266618,40.54,156.09,156.06,40.77375669]
[1748904266819,146.4,156.1,156.08,18.34648514]
[1748904267623,146.4,156.1,156.09,6.40656031]
[1748904268934,146.4,156.1,156.09,25.05620917]
[1748904269322,146.4,156.1,156.09,43.40269431]
[1748904270143,146.4,156.1,156.09,43.54485588]
[1748904270317,146.4,156.1,156.09,84.06485588]
[1748904271623,205.26648514,156.17,156.1,18.79181043]
[1748904271815,205.26648514,156.17,156.13,18.64964886]
[1748904272041,205.26648514,156.17,156.14,6.40450877]
[1748904272822,164.74648514,156.17,156.14,6.40450877]
[1748904273531,18.34648514,156.16,156.14,6.40450877]
[1748904274922,146.4,156.17,156.14,6.40450877]
[1748904275443,146.4,156.17,156.15,18.64964886]
[1748904276326,146.4,156.17,156.16,6.40368852]
[1748904283128,146.4,156.17,156.14,34.35775707]
[1748904283129,164.74648514,156.17,156.13,6.40491897]
[1748904283441,18.34648514,156.15,156.13,6.40491897]
[1748904283642,186.9,156.17,156.13,6.40491897]
[1748904283945,18.34648514,156.15,156.13,6.40491897]
[1748904284142,18.34648514,156.15,156.12,6.40532923]
[1748904285933,18.34648514,156.16,156.12,22.41865231]
[1748904286854,146.4,156.15,156.12,22.41865231]
[1748904289633,164.74648514,156.15,156.12,22.41865231]
[1748904291460,146.4,156.15,156.12,22.41865231]
[1748904299044,146.4,156.15,156.12,6.40532923]
[1748904300045,18.34648514,156.14,156.12,6.40532923]
[1748904300739,164.74648514,156.15,156.12,6.40532923]
[1748904300935,164.74648514,156.15,156.11,41.06973725]
[1748904301883,146.4,156.15,156.13,36.996134]
[1748904302035,146.4,156.15,156.14,36.996134]
[1748904303139,146.4,156.15,156.14,43.40064277]
[1748904305376,146.4,156.15,156.14,43.54280434]
[1748904306072,18.34648514,156.21,156.15,18.79181043]
[1748904306073,146.4,156.21,156.15,18.79181043]
[1748904306249,146.4,156.21,156.17,18.79181043]
[1748904306444,146.4,156.21,156.2,18.64964886]
[1748904307455,1.5605,156.24,156.2,25.05169751]
[1748904307683,40.46,156.25,156.21,18.34648514]
[1748904307974,18.34648514,156.23,156.2,41.05681914]
[1748904308175,18.34648514,156.24,156.2,41.05681914]
[1748904309364,18.34648514,156.24,156.2,59.40330428]
[1748904310454,18.34648514,156.23,156.2,41.05681914]
[1748904310871,18.34648514,156.24,156.2,59.40330428]
[1748904311686,40.44,156.25,156.2,59.40330428]
[1748904311859,18.34648514,156.25,156.2,59.40330428]
[1748904312171,18.34648514,156.26,156.21,36.996134]
[1748904313077,18.34648514,156.26,156.22,18.34648514]
[1748904313457,146.4,156.25,156.23,6.4008193]
[1748904314981,146.4,156.25,156.23,24.74730444]
[1748904315351,146.4,156.25,156.22,16.00223256]
[1748904315683,146.4,156.25,156.23,18.64964886]
[1748904316673,6.3013,156.27,156.23,18.64964886]
[1748904316977,18.34648514,156.27,156.23,36.996134]
[1748904317461,18.34648514,156.27,156.25,18.64964886]
[1748904319083,18.34648514,156.26,156.24,6.40040962]
[1748904319266,18.34648514,156.25,156.24,6.40040962]
[1748904319475,18.34648514,156.25,156.23,6.4008193]
[1748904320887,1.6631,156.28,156.23,6.4008193]